[Event "*** SCC Grand Prix: Titled Tuesday Blitz"]
[Site "Chess.com"]
[Date "2020.06.09"]
[Round "2"]
[White "i_am_sankalp"]
[Black "MateSchmate"]
[Result "0-1"]
[WhiteElo "2186"]
[BlackElo "2434"]
[TimeControl "180+1"]
[EndTime "9:18:22 PDT"]
[Termination "MateSchmate won by resignation"]

1. e4 {[%clk 0:03:00.9]} 1... e6 {[%clk 0:03:00]} 2. d4 {[%clk 0:02:59.2]} 2...
d5 {[%clk 0:03:00.5]} 3. Nc3 {[%clk 0:02:59.4]} 3... Bb4 {[%clk 0:02:59.6]} 4.
e5 {[%clk 0:02:58.6]} 4... c5 {[%clk 0:02:59.7]} 5. a3 {[%clk 0:02:58.4]} 5...
Bxc3+ {[%clk 0:03:00.3]} 6. bxc3 {[%clk 0:02:59.3]} 6... Qc7 {[%clk 0:03:01]} 7.
Rb1 {[%clk 0:02:39.2]} 7... Nc6 {[%clk 0:02:59.1]} 8. h4 {[%clk 0:02:36.6]} 8...
Nge7 {[%clk 0:02:53.6]} 9. h5 {[%clk 0:02:36.6]} 9... h6 {[%clk 0:02:49.8]} 10.
Qg4 {[%clk 0:02:27.7]} 10... Nf5 {[%clk 0:02:49.2]} 11. Bd3 {[%clk 0:02:24.3]}
11... Nce7 {[%clk 0:02:33.3]} 12. Nf3 {[%clk 0:02:16.4]} 12... Bd7 {[%clk
0:02:20.4]} 13. Qf4 {[%clk 0:02:15.4]} 13... c4 {[%clk 0:02:08.4]} 14. Be2
{[%clk 0:02:10.7]} 14... g5 {[%clk 0:02:05.1]} 15. hxg6 {[%clk 0:02:01.9]} 15...
Nxg6 {[%clk 0:02:04.9]} 16. Qd2 {[%clk 0:02:01.3]} 16... h5 {[%clk 0:02:00]} 17.
Qg5 {[%clk 0:01:51.3]} 17... Ba4 {[%clk 0:01:58.1]} 18. Kd1 {[%clk 0:01:32.3]}
18... h4 {[%clk 0:01:56.6]} 19. Rb4 {[%clk 0:01:28.6]} 19... b5 {[%clk
0:01:54.5]} 20. Nh2 {[%clk 0:01:12.9]} 20... a5 {[%clk 0:01:50.5]} 21. Rb1
{[%clk 0:00:57.6]} 21... Qe7 {[%clk 0:01:50.1]} 22. Ng4 {[%clk 0:00:53.8]} 22...
Qxg5 {[%clk 0:01:48.4]} 23. Bxg5 {[%clk 0:00:54.7]} 23... Kd7 {[%clk 0:01:47.7]}
24. Nf6+ {[%clk 0:00:52.1]} 24... Kc6 {[%clk 0:01:48]} 25. Bg4 {[%clk
0:00:50.7]} 25... Ng7 {[%clk 0:01:43.4]} 26. Kd2 {[%clk 0:00:47.4]} 26... Ne8
{[%clk 0:01:41.9]} 27. Rh2 {[%clk 0:00:45]} 27... Nc7 {[%clk 0:01:31.9]} 28.
Rbh1 {[%clk 0:00:35]} 28... Rab8 {[%clk 0:01:28.4]} 29. g3 {[%clk 0:00:20.5]}
29... hxg3 {[%clk 0:01:25.3]} 30. Rxh8 {[%clk 0:00:15.7]} 30... Rxh8 {[%clk
0:01:26.2]} 31. Rxh8 {[%clk 0:00:15.9]} 31... Nxh8 {[%clk 0:01:27.1]} 32. fxg3
{[%clk 0:00:15.9]} 32... b4 {[%clk 0:01:22.7]} 33. axb4 {[%clk 0:00:14.7]} 33...
axb4 {[%clk 0:01:22.5]} 34. cxb4 {[%clk 0:00:14.5]} 34... Kb5 {[%clk 0:01:09.4]}
35. c3 {[%clk 0:00:14.5]} 35... Na6 {[%clk 0:01:08.3]} 36. Bh5 {[%clk 0:00:13]}
36... Nxb4 {[%clk 0:01:02]} 37. cxb4 {[%clk 0:00:12.7]} 37... Kxb4 {[%clk
0:01:02.9]} 38. Bd1 {[%clk 0:00:08.2]} 38... c3+ {[%clk 0:00:58.8]} 39. Kc1
{[%clk 0:00:08.2]} 39... Bxd1 {[%clk 0:00:53.3]} 40. Kxd1 {[%clk 0:00:09.1]}
40... Kc4 {[%clk 0:00:54.2]} 41. Be3 {[%clk 0:00:06.7]} 41... Kd3 {[%clk
0:00:53.7]} 42. Bg1 {[%clk 0:00:05.9]} 42... Ng6 {[%clk 0:00:50.7]} 43. Nd7
{[%clk 0:00:05]} 43... Ne7 {[%clk 0:00:43.2]} 44. Nc5+ {[%clk 0:00:05.9]} 44...
Kc4 {[%clk 0:00:43.4]} 45. Kc2 {[%clk 0:00:06.7]} 45... Nc6 {[%clk 0:00:41.5]}
46. Nb3 {[%clk 0:00:05.9]} 46... Nb4+ {[%clk 0:00:39]} 0-1

[Event "*** SCC Grand Prix: Titled Tuesday Blitz"]
[Site "Chess.com"]
[Date "2020.06.09"]
[Round "2"]
[White "ehrenfeld"]
[Black "KuzubovYuriy"]
[Result "0-1"]
[WhiteElo "2499"]
[BlackElo "2744"]
[TimeControl "180+1"]
[EndTime "9:18:25 PDT"]
[Termination "KuzubovYuriy won on time"]

1. e4 {[%clk 0:03:00.9]} 1... c5 {[%clk 0:02:58.9]} 2. d3 {[%clk 0:03:00.5]}
2... Nc6 {[%clk 0:02:55.9]} 3. f4 {[%clk 0:02:59.4]} 3... d5 {[%clk 0:02:55]} 4.
Be2 {[%clk 0:02:58.7]} 4... Nf6 {[%clk 0:02:51]} 5. e5 {[%clk 0:02:57.9]} 5...
Nd7 {[%clk 0:02:49.4]} 6. Nf3 {[%clk 0:02:58.5]} 6... Nb6 {[%clk 0:02:42.3]} 7.
c3 {[%clk 0:02:58.1]} 7... Bf5 {[%clk 0:02:38.4]} 8. Na3 {[%clk 0:02:38.1]} 8...
e6 {[%clk 0:02:36.7]} 9. O-O {[%clk 0:02:37.6]} 9... Be7 {[%clk 0:02:29.6]} 10.
Nc2 {[%clk 0:02:19.8]} 10... d4 {[%clk 0:02:27.7]} 11. c4 {[%clk 0:02:16.5]}
11... Qc7 {[%clk 0:02:16.9]} 12. Nd2 {[%clk 0:02:10.3]} 12... h6 {[%clk
0:02:10.5]} 13. Ne4 {[%clk 0:02:04.5]} 13... Nxc4 {[%clk 0:02:03.9]} 14. Bf3
{[%clk 0:01:48.6]} 14... Nb6 {[%clk 0:02:00.7]} 15. Bd2 {[%clk 0:01:46.1]} 15...
Nd5 {[%clk 0:01:57.4]} 16. Rc1 {[%clk 0:01:44.5]} 16... Rd8 {[%clk 0:01:30]} 17.
Qe2 {[%clk 0:01:31.4]} 17... O-O {[%clk 0:01:23.2]} 18. g4 {[%clk 0:01:29.3]}
18... Bh7 {[%clk 0:01:22]} 19. Na3 {[%clk 0:01:25]} 19... Ndb4 {[%clk
0:01:02.2]} 20. Nc4 {[%clk 0:01:12.2]} 20... Kh8 {[%clk 0:00:45.9]} 21. a3
{[%clk 0:01:09]} 21... Nd5 {[%clk 0:00:46]} 22. Kh1 {[%clk 0:01:02.9]} 22... f6
{[%clk 0:00:38.2]} 23. Ncd6 {[%clk 0:00:50.7]} 23... fxe5 {[%clk 0:00:32.3]} 24.
fxe5 {[%clk 0:00:35.9]} 24... Nxe5 {[%clk 0:00:31.4]} 25. Nc4 {[%clk 0:00:23.1]}
25... Nxf3 {[%clk 0:00:30.3]} 26. Rxf3 {[%clk 0:00:22.1]} 26... Rxf3 {[%clk
0:00:30.4]} 27. Qxf3 {[%clk 0:00:21.5]} 27... Rf8 {[%clk 0:00:30.6]} 28. Qe2
{[%clk 0:00:20.7]} 28... b5 {[%clk 0:00:27.9]} 29. Na5 {[%clk 0:00:18.1]} 29...
Nf4 {[%clk 0:00:25.9]} 30. Bxf4 {[%clk 0:00:16]} 30... Qxf4 {[%clk 0:00:25.7]}
31. Re1 {[%clk 0:00:14.1]} 31... Bd6 {[%clk 0:00:20.1]} 32. Nxd6 {[%clk
0:00:04.7]} 32... Qxd6 {[%clk 0:00:19.7]} 33. Nb3 {[%clk 0:00:03.6]} 33... c4
{[%clk 0:00:16.4]} 34. Nd2 {[%clk 0:00:02.9]} 34... Bxd3 {[%clk 0:00:12.1]} 35.
Qg2 {[%clk 0:00:01.2]} 35... e5 {[%clk 0:00:10.1]} 0-1

[Event "*** SCC Grand Prix: Titled Tuesday Blitz"]
[Site "Chess.com"]
[Date "2020.06.09"]
[Round "2"]
[White "Matibar"]
[Black "witcher8"]
[Result "1-0"]
[WhiteElo "2721"]
[BlackElo "2406"]
[TimeControl "180+1"]
[EndTime "9:18:25 PDT"]
[Termination "Matibar won by resignation"]

1. e4 {[%clk 0:03:00.9]} 1... c6 {[%clk 0:02:59.7]} 2. Nc3 {[%clk 0:02:58.7]}
2... d5 {[%clk 0:03:00.6]} 3. Nf3 {[%clk 0:02:59.2]} 3... Bg4 {[%clk 0:03:00.1]}
4. h3 {[%clk 0:02:58.8]} 4... Bh5 {[%clk 0:02:56]} 5. exd5 {[%clk 0:02:54.1]}
5... cxd5 {[%clk 0:02:54.9]} 6. Bb5+ {[%clk 0:02:54.1]} 6... Nc6 {[%clk
0:02:54.8]} 7. g4 {[%clk 0:02:50]} 7... Bg6 {[%clk 0:02:54.8]} 8. Ne5 {[%clk
0:02:50.2]} 8... Rc8 {[%clk 0:02:55.2]} 9. d4 {[%clk 0:02:43.3]} 9... e6 {[%clk
0:02:44.9]} 10. Qe2 {[%clk 0:02:42]} 10... Bd6 {[%clk 0:02:35.7]} 11. h4 {[%clk
0:02:32.1]} 11... Bxe5 {[%clk 0:02:32.2]} 12. Qxe5 {[%clk 0:02:26.2]} 12... Qf6
{[%clk 0:02:26.6]} 13. Qe2 {[%clk 0:01:53.4]} 13... h5 {[%clk 0:02:00.4]} 14.
Nxd5 {[%clk 0:01:11.6]} 14... Qxd4 {[%clk 0:01:59.3]} 15. Nf4 {[%clk 0:01:11.7]}
15... Bxc2 {[%clk 0:01:38.1]} 16. Nxh5 {[%clk 0:00:47.1]} 16... a6 {[%clk
0:01:05.1]} 17. Qxc2 {[%clk 0:00:31.6]} 17... axb5 {[%clk 0:00:50]} 18. Qe2
{[%clk 0:00:31.5]} 18... Nb4 {[%clk 0:00:35.2]} 19. Qxb5+ {[%clk 0:00:26.4]}
19... Kf8 {[%clk 0:00:30.8]} 20. Kf1 {[%clk 0:00:21.1]} 20... Qd1+ {[%clk
0:00:28.4]} 21. Kg2 {[%clk 0:00:20.2]} 21... Qxg4+ {[%clk 0:00:28.4]} 22. Ng3
{[%clk 0:00:20.9]} 22... Nf6 {[%clk 0:00:24.6]} 23. Qxb7 {[%clk 0:00:20.7]}
23... Rd8 {[%clk 0:00:20.5]} 24. Be3 {[%clk 0:00:19.2]} 24... Nd3 {[%clk
0:00:17.8]} 25. Rad1 {[%clk 0:00:18.1]} 25... Rxh4 {[%clk 0:00:15.6]} 26. Rxh4
{[%clk 0:00:17.6]} 26... Qxh4 {[%clk 0:00:16.5]} 27. Bc5+ {[%clk 0:00:16]} 27...
Kg8 {[%clk 0:00:16.4]} 28. Bb6 {[%clk 0:00:15.9]} 28... Rd7 {[%clk 0:00:16.1]}
29. Qb8+ {[%clk 0:00:16]} 29... Kh7 {[%clk 0:00:16.5]} 30. Rh1 {[%clk
0:00:16.3]} 30... Qxh1+ {[%clk 0:00:16.7]} 31. Kxh1 {[%clk 0:00:17.2]} 31... Ng4
{[%clk 0:00:14.3]} 32. Kg2 {[%clk 0:00:16.7]} 32... Rd5 {[%clk 0:00:13.9]} 33.
Qc8 {[%clk 0:00:15.7]} 33... Nge5 {[%clk 0:00:13.6]} 34. Qc2 {[%clk 0:00:15.3]}
34... g6 {[%clk 0:00:13.1]} 35. Be3 {[%clk 0:00:14.8]} 35... Nb4 {[%clk
0:00:12.1]} 36. Qc7 {[%clk 0:00:14.2]} 36... Nxa2 {[%clk 0:00:10.3]} 37. Ne4
{[%clk 0:00:14.4]} 37... Kg7 {[%clk 0:00:10.1]} 38. Nc3 {[%clk 0:00:14.6]} 38...
Rd3 {[%clk 0:00:09.2]} 39. Qxe5+ {[%clk 0:00:13.9]} 1-0

[Event "*** SCC Grand Prix: Titled Tuesday Blitz"]
[Site "Chess.com"]
[Date "2020.06.09"]
[Round "2"]
[White "aakankshachess"]
[Black "Khazieva_Elza"]
[Result "0-1"]
[WhiteElo "2441"]
[BlackElo "2252"]
[TimeControl "180+1"]
[EndTime "9:18:25 PDT"]
[Termination "Khazieva_Elza won on time"]

1. e4 {[%clk 0:03:00.9]} 1... c5 {[%clk 0:02:56.8]} 2. Nf3 {[%clk 0:03:00.2]}
2... d6 {[%clk 0:02:57]} 3. Bb5+ {[%clk 0:02:59.6]} 3... Nd7 {[%clk 0:02:56.8]}
4. O-O {[%clk 0:02:58.2]} 4... a6 {[%clk 0:02:56.9]} 5. Bxd7+ {[%clk 0:02:57.7]}
5... Bxd7 {[%clk 0:02:57.8]} 6. d4 {[%clk 0:02:57.6]} 6... cxd4 {[%clk
0:02:49.8]} 7. Qxd4 {[%clk 0:02:58.1]} 7... h6 {[%clk 0:02:41.2]} 8. c4 {[%clk
0:02:57.9]} 8... Nf6 {[%clk 0:02:40.6]} 9. Nc3 {[%clk 0:02:57.7]} 9... Rc8
{[%clk 0:02:32]} 10. b3 {[%clk 0:02:55.8]} 10... Qc7 {[%clk 0:02:27.3]} 11. a4
{[%clk 0:02:48.1]} 11... Qc5 {[%clk 0:02:17.5]} 12. Qd3 {[%clk 0:02:41.3]} 12...
g6 {[%clk 0:02:06]} 13. Ba3 {[%clk 0:02:39.6]} 13... Qh5 {[%clk 0:02:00.8]} 14.
Rad1 {[%clk 0:02:28.2]} 14... Bc6 {[%clk 0:01:54.4]} 15. b4 {[%clk 0:02:20.5]}
15... Bg7 {[%clk 0:01:34.4]} 16. b5 {[%clk 0:02:08.8]} 16... axb5 {[%clk
0:01:34.2]} 17. axb5 {[%clk 0:02:07.6]} 17... Bd7 {[%clk 0:01:34.4]} 18. e5
{[%clk 0:02:04.2]} 18... dxe5 {[%clk 0:01:23.5]} 19. Bxe7 {[%clk 0:01:27.3]}
19... Kxe7 {[%clk 0:00:53]} 20. Qd6+ {[%clk 0:01:24.5]} 20... Ke8 {[%clk
0:00:53.1]} 21. Nxe5 {[%clk 0:01:03.3]} 21... Be6 {[%clk 0:00:53.3]} 22. Rfe1
{[%clk 0:00:58.2]} 22... Bf8 {[%clk 0:00:45.9]} 23. Qb6 {[%clk 0:00:46.8]} 23...
Bb4 {[%clk 0:00:36.5]} 24. Qxb7 {[%clk 0:00:22.9]} 24... Bxc3 {[%clk 0:00:20.4]}
25. Nc6 {[%clk 0:00:19.9]} 25... Kf8 {[%clk 0:00:15.3]} 26. Qe7+ {[%clk
0:00:19]} 26... Kg7 {[%clk 0:00:15.2]} 27. Rc1 {[%clk 0:00:17.1]} 27... Bxe1
{[%clk 0:00:14.5]} 28. Rxe1 {[%clk 0:00:18]} 28... Rhe8 {[%clk 0:00:14.4]} 29.
Qd6 {[%clk 0:00:17.1]} 29... Qg5 {[%clk 0:00:10.9]} 30. b6 {[%clk 0:00:15.7]}
30... Bh3 {[%clk 0:00:10.4]} 0-1

[Event "*** SCC Grand Prix: Titled Tuesday Blitz"]
[Site "Chess.com"]
[Date "2020.06.09"]
[Round "2"]
[White "pawnwonder"]
[Black "FontVella8"]
[Result "0-1"]
[WhiteElo "2191"]
[BlackElo "2438"]
[TimeControl "180+1"]
[EndTime "9:18:25 PDT"]
[Termination "FontVella8 won on time"]

1. e4 {[%clk 0:03:00.9]} 1... c6 {[%clk 0:03:00.1]} 2. d4 {[%clk 0:02:59.9]}
2... d5 {[%clk 0:03:00]} 3. Nc3 {[%clk 0:03:00.4]} 3... dxe4 {[%clk 0:03:00.3]}
4. Nxe4 {[%clk 0:03:01.3]} 4... Nf6 {[%clk 0:03:00.6]} 5. Nxf6+ {[%clk
0:03:01.7]} 5... exf6 {[%clk 0:03:01.1]} 6. c3 {[%clk 0:03:02.3]} 6... Bd6
{[%clk 0:03:01.3]} 7. Bd3 {[%clk 0:03:02.7]} 7... Qc7 {[%clk 0:03:00.3]} 8. Qc2
{[%clk 0:03:01.7]} 8... Be6 {[%clk 0:03:00.4]} 9. Ne2 {[%clk 0:02:57.6]} 9...
Nd7 {[%clk 0:03:00.7]} 10. g3 {[%clk 0:02:55]} 10... O-O-O {[%clk 0:02:56.2]}
11. Bd2 {[%clk 0:02:42.4]} 11... h5 {[%clk 0:02:55.6]} 12. O-O-O {[%clk
0:02:27.8]} 12... h4 {[%clk 0:02:54.9]} 13. Bf4 {[%clk 0:02:27]} 13... g5 {[%clk
0:02:43.4]} 14. Bxd6 {[%clk 0:02:26.1]} 14... Qxd6 {[%clk 0:02:44.3]} 15. c4
{[%clk 0:02:10.4]} 15... Kb8 {[%clk 0:02:23.6]} 16. Be4 {[%clk 0:01:43.6]} 16...
Rhe8 {[%clk 0:02:00.2]} 17. Kb1 {[%clk 0:01:13.8]} 17... Bxc4 {[%clk 0:01:57]}
18. Qxc4 {[%clk 0:01:09.1]} 18... Rxe4 {[%clk 0:01:56.7]} 19. Nc3 {[%clk
0:01:08.8]} 19... Re7 {[%clk 0:01:51.8]} 20. d5 {[%clk 0:00:50.8]} 20... Nb6
{[%clk 0:01:51.8]} 21. Qd4 {[%clk 0:00:20.3]} 21... cxd5 {[%clk 0:01:48.8]} 22.
gxh4 {[%clk 0:00:17.6]} 22... gxh4 {[%clk 0:01:48.6]} 23. Qxh4 {[%clk
0:00:17.3]} 23... Qc6 {[%clk 0:01:39]} 24. Qf4+ {[%clk 0:00:16.7]} 24... Ka8
{[%clk 0:01:35.4]} 25. Rhe1 {[%clk 0:00:11.2]} 25... Rxe1 {[%clk 0:01:31.5]} 26.
Rxe1 {[%clk 0:00:12.1]} 26... d4 {[%clk 0:01:31.7]} 27. Rd1 {[%clk 0:00:12.1]}
27... Qd7 {[%clk 0:01:16.7]} 28. Qxf6 {[%clk 0:00:10]} 28... Nc4 {[%clk
0:01:11.7]} 29. Nb5 {[%clk 0:00:07.5]} 29... Rc8 {[%clk 0:00:59.2]} 30. Nxd4
{[%clk 0:00:05.2]} 30... Qa4 {[%clk 0:00:50.5]} 31. Qf3 {[%clk 0:00:03]} 31...
Rd8 {[%clk 0:00:35.2]} 32. Qb3 {[%clk 0:00:02.7]} 32... Qa6 {[%clk 0:00:31.6]}
33. Qc3 {[%clk 0:00:02.7]} 33... Qg6+ {[%clk 0:00:27.3]} 34. Ka1 {[%clk
0:00:02.5]} 34... Qg4 {[%clk 0:00:19.6]} 35. Rd3 {[%clk 0:00:02.7]} 35... Qg1+
{[%clk 0:00:18.5]} 0-1

[Event "*** SCC Grand Prix: Titled Tuesday Blitz"]
[Site "Chess.com"]
[Date "2020.06.09"]
[Round "2"]
[White "Danesz22"]
[Black "DaggiGretarsson"]
[Result "1-0"]
[WhiteElo "2353"]
[BlackElo "2606"]
[TimeControl "180+1"]
[EndTime "9:18:26 PDT"]
[Termination "Danesz22 won by checkmate"]

1. e4 {[%clk 0:03:00.9]} 1... g6 {[%clk 0:03:00]} 2. d4 {[%clk 0:02:59.9]} 2...
Bg7 {[%clk 0:03:00.3]} 3. Nc3 {[%clk 0:03:00.1]} 3... d6 {[%clk 0:03:00.5]} 4.
h3 {[%clk 0:02:54.6]} 4... a6 {[%clk 0:02:59.9]} 5. a4 {[%clk 0:02:53.7]} 5...
b6 {[%clk 0:02:59.3]} 6. Nf3 {[%clk 0:02:47]} 6... Bb7 {[%clk 0:02:53.7]} 7. Be3
{[%clk 0:02:44.4]} 7... Nd7 {[%clk 0:02:52.1]} 8. Bc4 {[%clk 0:02:37.4]} 8... e6
{[%clk 0:02:51.8]} 9. Qe2 {[%clk 0:02:27.2]} 9... Ne7 {[%clk 0:02:50.2]} 10. Bb3
{[%clk 0:02:16.9]} 10... h6 {[%clk 0:02:33.4]} 11. Rd1 {[%clk 0:02:15]} 11...
O-O {[%clk 0:02:30]} 12. h4 {[%clk 0:02:07]} 12... Nf6 {[%clk 0:02:26.4]} 13.
Bc1 {[%clk 0:02:03.6]} 13... h5 {[%clk 0:02:08.7]} 14. e5 {[%clk 0:01:57.5]}
14... Ng4 {[%clk 0:02:05.6]} 15. Ne4 {[%clk 0:01:45.1]} 15... Bxe4 {[%clk
0:01:50]} 16. Qxe4 {[%clk 0:01:44.5]} 16... d5 {[%clk 0:01:50.3]} 17. Qe2 {[%clk
0:01:43]} 17... c5 {[%clk 0:01:47.1]} 18. c3 {[%clk 0:01:40.3]} 18... Nc6 {[%clk
0:01:42.1]} 19. Bc2 {[%clk 0:01:31.8]} 19... Bh6 {[%clk 0:01:27]} 20. Ng5 {[%clk
0:01:11.9]} 20... Qc7 {[%clk 0:00:32.9]} 21. f3 {[%clk 0:01:06.6]} 21... Ngxe5
{[%clk 0:00:32.6]} 22. dxe5 {[%clk 0:01:01.7]} 22... Qxe5 {[%clk 0:00:31]} 23.
Qxe5 {[%clk 0:00:58.3]} 23... Nxe5 {[%clk 0:00:31.1]} 24. O-O {[%clk 0:00:49.3]}
24... Bg7 {[%clk 0:00:29.6]} 25. Rfe1 {[%clk 0:00:47.4]} 25... b5 {[%clk
0:00:28.1]} 26. a5 {[%clk 0:00:33.7]} 26... Nc6 {[%clk 0:00:20]} 27. g4 {[%clk
0:00:33.7]} 27... Nxa5 {[%clk 0:00:15.4]} 28. gxh5 {[%clk 0:00:33.7]} 28... gxh5
{[%clk 0:00:15.8]} 29. Kf2 {[%clk 0:00:33.6]} 29... Nc4 {[%clk 0:00:15.1]} 30.
Rg1 {[%clk 0:00:33.7]} 30... Ne5 {[%clk 0:00:13.9]} 31. Rg2 {[%clk 0:00:32.3]}
31... Kh8 {[%clk 0:00:13.1]} 32. Rdg1 {[%clk 0:00:32.3]} 32... Bf6 {[%clk
0:00:13.2]} 33. Bf4 {[%clk 0:00:30.3]} 33... a5 {[%clk 0:00:11.6]} 34. Re1
{[%clk 0:00:29.7]} 34... Nd7 {[%clk 0:00:10.4]} 35. Nh7 {[%clk 0:00:29.7]} 35...
Rg8 {[%clk 0:00:09.5]} 36. Nxf6 {[%clk 0:00:29.7]} 36... Nxf6 {[%clk 0:00:09.1]}
37. Be5 {[%clk 0:00:29.6]} 37... Rxg2+ {[%clk 0:00:06.9]} 38. Kxg2 {[%clk
0:00:30.5]} 38... Kg7 {[%clk 0:00:07.3]} 39. Kh3 {[%clk 0:00:28.6]} 39... Kh6
{[%clk 0:00:06.2]} 40. Bxf6 {[%clk 0:00:28.2]} 40... a4 {[%clk 0:00:06.7]} 41.
Rg1 {[%clk 0:00:26.9]} 41... a3 {[%clk 0:00:01.6]} 42. Bg7# {[%clk 0:00:26.8]}
1-0

[Event "*** SCC Grand Prix: Titled Tuesday Blitz"]
[Site "Chess.com"]
[Date "2020.06.09"]
[Round "2"]
[White "Fh2411"]
[Black "rududuyk"]
[Result "1-0"]
[WhiteElo "2442"]
[BlackElo "2195"]
[TimeControl "180+1"]
[EndTime "9:18:28 PDT"]
[Termination "Fh2411 won on time"]

1. d4 {[%clk 0:03:00.9]} 1... e6 {[%clk 0:02:55.8]} 2. Nf3 {[%clk 0:02:44.9]}
2... f5 {[%clk 0:02:53]} 3. g3 {[%clk 0:02:44.4]} 3... Nf6 {[%clk 0:02:53.2]} 4.
Bg2 {[%clk 0:02:45.3]} 4... Be7 {[%clk 0:02:53.4]} 5. O-O {[%clk 0:02:14.8]}
5... O-O {[%clk 0:02:53.1]} 6. c4 {[%clk 0:02:14.9]} 6... d6 {[%clk 0:02:52.3]}
7. Nc3 {[%clk 0:01:49.9]} 7... Ne4 {[%clk 0:02:48.4]} 8. Qc2 {[%clk 0:01:39.2]}
8... Nxc3 {[%clk 0:02:36.8]} 9. Qxc3 {[%clk 0:01:24.5]} 9... a5 {[%clk
0:02:36.7]} 10. Re1 {[%clk 0:01:12.4]} 10... Bf6 {[%clk 0:01:59]} 11. e4 {[%clk
0:01:00.8]} 11... Nc6 {[%clk 0:01:33.7]} 12. e5 {[%clk 0:00:50.4]} 12... dxe5
{[%clk 0:01:04.7]} 13. dxe5 {[%clk 0:00:51.3]} 13... Be7 {[%clk 0:01:04.8]} 14.
a3 {[%clk 0:00:50.9]} 14... Qe8 {[%clk 0:01:04.4]} 15. Bf4 {[%clk 0:00:39.4]}
15... Qh5 {[%clk 0:01:02.8]} 16. h4 {[%clk 0:00:36.2]} 16... h6 {[%clk
0:01:02.1]} 17. Qe3 {[%clk 0:00:30.2]} 17... a4 {[%clk 0:00:43.7]} 18. Rad1
{[%clk 0:00:21.1]} 18... Na5 {[%clk 0:00:42.7]} 19. c5 {[%clk 0:00:12.6]} 19...
Nb3 {[%clk 0:00:39.5]} 20. c6 {[%clk 0:00:07.9]} 20... Bc5 {[%clk 0:00:37.4]}
21. Qc3 {[%clk 0:00:07.5]} 21... b6 {[%clk 0:00:24.9]} 22. Be3 {[%clk
0:00:07.8]} 22... Ba6 {[%clk 0:00:18.9]} 23. Bxc5 {[%clk 0:00:07.3]} 23... Nxc5
{[%clk 0:00:18.6]} 24. Nd4 {[%clk 0:00:08]} 24... g5 {[%clk 0:00:16.1]} 25. hxg5
{[%clk 0:00:06.8]} 25... hxg5 {[%clk 0:00:17]} 26. Qf3 {[%clk 0:00:06.3]} 26...
g4 {[%clk 0:00:16.4]} 27. Qf4 {[%clk 0:00:06.6]} 27... Rf7 {[%clk 0:00:15.7]}
28. f3 {[%clk 0:00:05.5]} 28... Rh7 {[%clk 0:00:14.8]} 29. fxg4 {[%clk
0:00:05.6]} 29... Qh2+ {[%clk 0:00:14]} 30. Kf2 {[%clk 0:00:05.5]} 30... Nd3+
{[%clk 0:00:12.7]} 31. Rxd3 {[%clk 0:00:05.2]} 31... Bxd3 {[%clk 0:00:13]} 32.
Rh1 {[%clk 0:00:05.8]} 32... fxg4 {[%clk 0:00:07]} 33. Rxh2 {[%clk 0:00:05.4]}
33... Rxh2 {[%clk 0:00:05.2]} 34. Qg5+ {[%clk 0:00:05.5]} 34... Kh8 {[%clk
0:00:04.6]} 35. Nxe6 {[%clk 0:00:05.7]} 1-0

[Event "*** SCC Grand Prix: Titled Tuesday Blitz"]
[Site "Chess.com"]
[Date "2020.06.09"]
[Round "2"]
[White "CalinGheorghiu"]
[Black "MarcoRiehle"]
[Result "0-1"]
[WhiteElo "2339"]
[BlackElo "2636"]
[TimeControl "180+1"]
[EndTime "9:18:30 PDT"]
[Termination "MarcoRiehle won on time"]

1. d4 {[%clk 0:02:59.7]} 1... d5 {[%clk 0:02:59.4]} 2. c4 {[%clk 0:02:59.2]}
2... e6 {[%clk 0:02:59.6]} 3. Nc3 {[%clk 0:02:58.5]} 3... c5 {[%clk 0:02:59.1]}
4. cxd5 {[%clk 0:02:53.7]} 4... cxd4 {[%clk 0:02:57.6]} 5. Qxd4 {[%clk
0:02:53.3]} 5... Nc6 {[%clk 0:02:57.2]} 6. Qa4 {[%clk 0:02:50.2]} 6... exd5
{[%clk 0:02:58.1]} 7. Nf3 {[%clk 0:02:49.1]} 7... d4 {[%clk 0:02:57.9]} 8. Nb5
{[%clk 0:02:43.6]} 8... Nf6 {[%clk 0:02:54.4]} 9. g3 {[%clk 0:02:40.7]} 9...
Bb4+ {[%clk 0:02:53.1]} 10. Bd2 {[%clk 0:02:40.4]} 10... Bxd2+ {[%clk
0:02:53.6]} 11. Nxd2 {[%clk 0:02:40.1]} 11... O-O {[%clk 0:02:50.4]} 12. Bg2
{[%clk 0:02:40.5]} 12... d3 {[%clk 0:02:50.6]} 13. e3 {[%clk 0:02:38.1]} 13...
a6 {[%clk 0:02:47.1]} 14. Nc3 {[%clk 0:02:34.2]} 14... Bd7 {[%clk 0:02:39.4]}
15. Qh4 {[%clk 0:02:24.6]} 15... Ne5 {[%clk 0:02:37.8]} 16. O-O {[%clk
0:02:22.6]} 16... Bc6 {[%clk 0:02:35.4]} 17. e4 {[%clk 0:02:15]} 17... h6 {[%clk
0:02:19.5]} 18. Qf4 {[%clk 0:02:00.7]} 18... Re8 {[%clk 0:02:17.9]} 19. Rfe1
{[%clk 0:01:50.8]} 19... Qd7 {[%clk 0:02:05.2]} 20. Rad1 {[%clk 0:01:38.8]}
20... Rad8 {[%clk 0:02:03.1]} 21. Nb3 {[%clk 0:01:32.8]} 21... Qc8 {[%clk
0:01:46.7]} 22. Na5 {[%clk 0:01:13.3]} 22... Rd4 {[%clk 0:01:36.1]} 23. Qe3
{[%clk 0:00:58.7]} 23... Red8 {[%clk 0:01:31.7]} 24. Nd5 {[%clk 0:00:53.9]}
24... Ra4 {[%clk 0:01:21.3]} 25. Nxf6+ {[%clk 0:00:51.6]} 25... gxf6 {[%clk
0:01:20.9]} 26. Nxc6 {[%clk 0:00:40.8]} 26... Qxc6 {[%clk 0:01:20.6]} 27. Qxh6
{[%clk 0:00:37.5]} 27... Rxa2 {[%clk 0:01:12.5]} 28. Qh5 {[%clk 0:00:24]} 28...
Qe6 {[%clk 0:01:03.5]} 29. Bh3 {[%clk 0:00:20.5]} 29... Qe8 {[%clk 0:00:59.8]}
30. Bf5 {[%clk 0:00:19.8]} 30... Ng6 {[%clk 0:00:57.6]} 31. e5 {[%clk
0:00:17.1]} 31... fxe5 {[%clk 0:00:56.3]} 32. Re4 {[%clk 0:00:17.6]} 32... Rxb2
{[%clk 0:00:46.9]} 33. Qh6 {[%clk 0:00:12]} 33... Qf8 {[%clk 0:00:36.8]} 34. Qg5
{[%clk 0:00:10.9]} 34... Qe7 {[%clk 0:00:34.1]} 35. Qh5 {[%clk 0:00:10]} 35...
Qf6 {[%clk 0:00:31]} 36. Rg4 {[%clk 0:00:08.5]} 36... Rd6 {[%clk 0:00:24.2]} 37.
h4 {[%clk 0:00:07.5]} 37... d2 {[%clk 0:00:23.8]} 38. Be4 {[%clk 0:00:03.5]}
38... Rb4 {[%clk 0:00:18]} 39. Qh6 {[%clk 0:00:03.3]} 39... Rxe4 {[%clk
0:00:17]} 40. Rxe4 {[%clk 0:00:03]} 40... Qf3 {[%clk 0:00:17.3]} 0-1